fUSD/lending_fUSD_20240814
["ID","MTS","AMOUNT","RATE_DAILY","PERIOD"]
[334858667,1723609902947,-799.62,0.00016438,2]
[334858668,1723609902959,-500.0,0.00016438,2]
[334858669,1723609902970,-500.0,0.00016438,2]
[334858670,1723609902982,-905.52,0.00016438,2]
[334858671,1723609902994,-500.0,0.00016438,2]
[334858672,1723609903014,-500.0,0.00016438,2]
[334858673,1723609903025,-500.0,0.00016438,2]
[334858674,1723609903037,-877.68,0.00016438,2]
[334858675,1723609903050,-1597.53,0.00016438,2]
[334858676,1723609903062,-500.0,0.00016438,2]
[334858677,1723609903074,-500.0,0.00016438,2]
[334858678,1723609903088,-1514.3,0.00016438,2]
[334858679,1723609903100,-500.0,0.00016438,2]
[334858680,1723609903112,-500.0,0.00016438,2]
[334858681,1723609903124,-1130.83,0.00016438,2]
[334858682,1723609903136,-500.0,0.00016438,2]
[334858683,1723609903148,-500.0,0.00016438,2]
[334858684,1723609903160,-404.58410082,0.00016438,2]
[334858685,1723609903171,-500.0,0.00016438,2]
[334858686,1723609903182,-500.0,0.00016438,2]
[334858687,1723609903194,-500.0,0.00016438,2]
[334858688,1723609903206,-500.0,0.00016438,2]
[334858689,1723609903217,-202.41461451,0.00016438,2]
[334858690,1723609903228,-512.96,0.00016438,2]
[334858691,1723609903242,-500.0,0.00016438,2]
[334858692,1723609903254,-500.0,0.00016438,2]
[334858693,1723609903266,-500.0,0.00016438,2]
[334858694,1723609903279,-825.54,0.00016438,2]
[334858695,1723609903291,-500.0,0.00016438,2]
[334858696,1723609903302,-500.0,0.00016438,2]
[334858697,1723609903313,-500.0,0.00016438,2]
[334858698,1723609903325,-688.2,0.00016438,2]
[334858699,1723609903336,-500.0,0.00016438,2]
[334858700,1723609903349,-508.74,0.00016438,2]
[334858701,1723609903360,-966.26,0.00016438,2]
[334858702,1723609903372,-500.0,0.00016438,2]
[334858703,1723609903384,-500.0,0.00016438,2]
[334858704,1723609903396,-882.14,0.00016438,2]
[334858705,1723609903408,-500.0,0.00016438,2]
[334858706,1723609903420,-500.0,0.00016438,2]
[334858707,1723609903432,-500.0,0.00016438,2]
[334858708,1723609903444,-500.0,0.00016438,2]
[334858709,1723609903457,-500.0,0.00016438,2]
[334858710,1723609903469,-521.92,0.00016438,2]
[334858711,1723609903481,-500.0,0.00016438,2]
[334858712,1723609903495,-703.01,0.00016438,2]
[334858713,1723609903508,-500.0,0.00016438,2]
[334858714,1723609903520,-1055.94,0.00016438,2]
[334858715,1723609903531,-500.0,0.00016438,2]
[334858716,1723609903543,-500.0,0.00016438,2]
[334858717,1723609903555,-500.0,0.00016438,2]
[334858718,1723609903567,-500.0,0.00016438,2]
[334858719,1723609903578,-646.22,0.00016438,2]
[334858720,1723609903590,-2252.71,0.00016438,2]
[334858721,1723609903602,-500.0,0.00016438,2]
[334858722,1723609903613,-880.31,0.00016438,2]
[334858723,1723609903625,-1294.46,0.00016438,2]
[334858724,1723609903637,-500.0,0.00016438,2]
[334858725,1723609903649,-500.0,0.00016438,2]
[334858726,1723609903660,-951.77,0.00016438,2]
[334858727,1723609903672,-500.0,0.00016438,2]
[334858728,1723609903684,-500.0,0.00016438,2]
[334858729,1723609903699,-501.2,0.00016438,2]
[334858730,1723609903712,-2007.46,0.00016438,2]
[334858731,1723609903723,-1637.64,0.00016438,2]
[334858732,1723609903735,-500.0,0.00016438,2]
[334858733,1723609903747,-500.0,0.00016438,2]
[334858734,1723609903760,-500.0,0.00016438,2]
[334858735,1723609903772,-532.67,0.00016438,2]
[334858736,1723609903784,-500.0,0.00016438,2]
[334858737,1723609903796,-1243.67,0.00016438,2]
[334858738,1723609903807,-500.0,0.00016438,2]
[334858739,1723609903819,-1029.48,0.00016438,2]
[334858740,1723609903832,-500.0,0.00016438,2]
[334858741,1723609903843,-838.15,0.00016438,2]
[334858742,1723609903855,-632.46,0.00016438,2]
[334858743,1723609903867,-562.14,0.00016438,2]
[334858744,1723609903879,-735.43,0.00016438,2]
[334858745,1723609903891,-250.63594109,0.00016438,2]
[334858746,1723609903902,-924.42,0.00016438,2]
[334858747,1723609903915,-211.16120292,0.00016438,2]
[334858748,1723609903927,-679.38,0.00016438,2]
[334858749,1723609903940,-2016.25,0.00016438,2]
[334858750,1723609903953,-500.0,0.00016438,2]
[334858751,1723609903965,-996.84,0.00016438,2]
[334858752,1723609903978,-500.0,0.00016438,2]
[334858753,1723609903990,-2074.06,0.00016438,2]
[334858754,1723609904003,-152.04426467,0.00016438,2]
[334858755,1723609904018,-500.0,0.00016438,2]
[334858756,1723609904032,-1744.71,0.00016438,2]
[334858757,1723609904044,-1346.19,0.00016438,2]
[334858758,1723609904057,-993.13,0.00016438,2]
[334858759,1723609904069,-571.62,0.00016438,2]
[334858760,1723609904084,-1990.94,0.00016438,2]
[334858761,1723609904096,-500.0,0.00016438,2]
[334858762,1723609904108,-1138.63,0.00016438,2]
[334858763,1723609904119,-500.0,0.00016438,2]
[334858764,1723609904131,-500.0,0.00016438,2]
[334858765,1723609904143,-1184.63,0.00016438,2]
[334858766,1723609904155,-570.91,0.00016438,2]
[334858767,1723609904167,-2160.46,0.00016438,2]
[334858768,1723609904180,-989.17,0.00016438,2]
[334858769,1723609904193,-1186.27,0.00016438,2]
[334858770,1723609904204,-500.0,0.00016438,2]
[334858771,1723609904216,-500.0,0.00016438,2]
[334858772,1723609904227,-500.0,0.00016438,2]
[334858773,1723609904239,-1867.57,0.00016438,2]
[334858774,1723609904251,-1273.12,0.00016438,2]
[334858775,1723609904263,-787.73,0.00016438,2]
[334858776,1723609904276,-840.85,0.00016438,2]
[334858777,1723609904287,-298.82064601,0.00016438,2]
[334858778,1723609904299,-500.0,0.00016438,2]
[334858779,1723609904309,-816.91,0.00016438,2]
[334858780,1723609904319,-1315.34,0.00016438,2]
[334858781,1723609904329,-500.0,0.00016438,2]
[334858782,1723609904339,-742.37,0.00016438,2]
[334858783,1723609904349,-2161.83,0.00016438,2]
[334858784,1723609904359,-500.0,0.00016438,2]
[334858785,1723609904368,-500.0,0.00016438,2]
[334858786,1723609904378,-682.41,0.00016438,2]
[334858787,1723609904388,-1020.28,0.00016438,2]
[334858788,1723609904398,-823.18,0.00016438,2]
[334858789,1723609904408,-697.5,0.00016438,2]
[334858790,1723609904419,-500.0,0.00016438,2]
[334858791,1723609904429,-529.04,0.00016438,2]
[334858792,1723609904439,-1426.92,0.00016438,2]
[334858793,1723609904450,-1026.61,0.00016438,2]
[334858794,1723609904459,-934.99,0.00016438,2]
[334858795,1723609904469,-500.0,0.00016438,2]
[334858796,1723609904478,-1110.01,0.00016438,2]
[334858797,1723609904488,-500.0,0.00016438,2]
[334858798,1723609904497,-1062.19,0.00016438,2]
[334858799,1723609904507,-1885.75,0.00016438,2]
[334858800,1723609904516,-1417.64,0.00016438,2]
[334858801,1723609904526,-1081.43,0.00016438,2]
[334858802,1723609904535,-416.68708788,0.00016438,2]
[334858803,1723609904544,-602.11511896,0.00016438,2]
[334858804,1723609904554,-687.0,0.00016438,2]
[334858805,1723609904563,-779.74,0.00016438,2]
[334858806,1723609904572,-681.03,0.00016438,2]
[334858807,1723609904581,-500.0,0.00016438,2]
[334858808,1723609904591,-500.0,0.00016438,2]
[334858809,1723609904601,-533.04,0.00016438,2]
[334858810,1723609904611,-500.0,0.00016438,2]
[334858811,1723609904620,-648.57,0.00016438,2]
[334858812,1723609904630,-500.0,0.00016438,2]
[334858813,1723609904640,-859.4,0.00016438,2]
[334858814,1723609904650,-573.93,0.00016438,2]
[334858815,1723609904659,-500.0,0.00016438,2]
[334858816,1723609904669,-575.8,0.00016438,2]
[334858817,1723609904678,-500.0,0.00016438,2]
[334858818,1723609904689,-1073.74,0.00016438,2]
[334858819,1723609904698,-2787.92,0.00016438,2]
[334858820,1723609904708,-784.46,0.00016438,2]
[334858821,1723609904718,-548.88,0.00016438,2]
[334858822,1723609904726,-813.12,0.00016438,2]
[334858823,1723609904736,-1169.53,0.00016438,2]
[334858824,1723609904746,-500.0,0.00016438,2]
[334858825,1723609904756,-500.0,0.00016438,2]
[334858826,1723609904766,-500.0,0.00016438,2]
[334858827,1723609904776,-874.05,0.00016438,2]
[334858828,1723609904785,-500.0,0.00016438,2]
[334858829,1723609904794,-550.41,0.00016438,2]
[334858830,1723609904804,-662.44,0.00016438,2]
[334858831,1723609904813,-514.89,0.00016438,2]
[334858832,1723609904823,-897.12,0.00016438,2]
[334858833,1723609904832,-722.1,0.00016438,2]
[334858834,1723609904841,-1677.46,0.00016438,2]
[334858835,1723609904850,-827.12,0.00016438,2]
[334858836,1723609904860,-500.0,0.00016438,2]
[334858837,1723609904869,-500.0,0.00016438,2]
[334858838,1723609904879,-747.02,0.00016438,2]
[334858839,1723609904888,-979.9,0.00016438,2]
[334858840,1723609904898,-500.0,0.00016438,2]
[334858841,1723609905431,-1337.17,0.00016438,2]
[334858842,1723609905454,-2317.78,0.00016438,2]
[334858843,1723609905473,-1767.63,0.00016438,2]
[334858844,1723609905496,-768.37,0.00016438,2]
[334858845,1723609905516,-500.0,0.00016438,2]
[334858846,1723609905530,-1308.24,0.00016438,2]
[334858847,1723609905539,-665.33,0.00016438,2]
[334858848,1723609905548,-1152.45,0.00016438,2]
[334858849,1723609905557,-500.0,0.00016438,2]
[334858850,1723609905567,-500.0,0.00016438,2]
[334858851,1723609905576,-500.0,0.00016438,2]
[334858852,1723609905586,-573.78,0.00016438,2]
[334858853,1723609905596,-561.17,0.00016438,2]
[334858854,1723609905605,-543.31,0.00016438,2]
[334858855,1723609905614,-727.32,0.00016438,2]
[334858856,1723609905624,-1911.45,0.00016438,2]
[334858857,1723609905634,-793.97,0.00016438,2]
[334858858,1723609905643,-500.0,0.00016438,2]
[334858859,1723609905652,-500.0,0.00016438,2]
[334858860,1723609905662,-574.12,0.00016438,2]
[334858861,1723609905672,-500.0,0.00016438,2]
[334858862,1723609905681,-500.0,0.00016438,2]
[334858863,1723609905692,-1032.04,0.00016438,2]
[334858864,1723609905701,-831.96,0.00016438,2]
[334858865,1723609905710,-500.0,0.00016438,2]
[334858866,1723609905719,-788.71,0.00016438,2]
[334858867,1723609905730,-1203.92,0.00016438,2]
[334858868,1723609905739,-500.0,0.00016438,2]
[334858869,1723609905749,-1101.68,0.00016438,2]
[334858870,1723609905759,-548.96,0.00016438,2]
[334858871,1723609905768,-1753.38,0.00016438,2]
[334858872,1723609905777,-1248.17,0.00016438,2]
[334858873,1723609905787,-524.48,0.00016438,2]
[334858874,1723609905796,-1358.16,0.00016438,2]
[334858875,1723609905805,-757.67,0.00016438,2]
[334858876,1723609905815,-1262.29,0.00016438,2]
[334858877,1723609905824,-500.0,0.00016438,2]
[334858878,1723609905834,-1063.98,0.00016438,2]
[334858879,1723609905843,-1515.14,0.00016438,2]
[334858880,1723609905852,-1432.6,0.00016438,2]
[334858881,1723609905862,-1036.82,0.00016438,2]
[334858882,1723609905871,-515.71,0.00016438,2]
[334858883,1723609905880,-517.32,0.00016438,2]
[334858884,1723609905889,-1528.48,0.00016438,2]
[334858885,1723609905898,-500.0,0.00016438,2]
[334858886,1723609905907,-531.49,0.00016438,2]
[334858887,1723609905917,-633.1,0.00016438,2]
[334858888,1723609905926,-500.0,0.00016438,2]
[334858889,1723609905935,-500.0,0.00016438,2]
[334858890,1723609905946,-949.66,0.00016438,2]
[334858891,1723609905955,-670.33,0.00016438,2]
[334858892,1723609905964,-611.16,0.00016438,2]
[334858893,1723609905974,-1056.45,0.00016438,2]
[334858894,1723609905983,-1394.22,0.00016438,2]
[334858895,1723609905992,-500.0,0.00016438,2]
[334858896,1723609906003,-460.65179233,0.00016438,2]
[334858897,1723609906015,-1262.52,0.00016438,2]
[334858898,1723609906023,-858.99,0.00016438,2]
[334858899,1723609906032,-862.28,0.00016438,2]
[334858900,1723609906042,-649.6,0.00016438,2]
[334858901,1723609906052,-668.29,0.00016438,2]
[334858902,1723609906061,-500.0,0.00016438,2]
[334858903,1723609906070,-500.0,0.00016438,2]
[334858904,1723609906080,-994.54,0.00016438,2]
[334858905,1723609906090,-500.0,0.00016438,2]
[334858906,1723609906099,-500.0,0.00016438,2]
[334858907,1723609906109,-500.0,0.00016438,2]
[334858908,1723609906118,-500.0,0.00016438,2]
[334858909,1723609906127,-500.0,0.00016438,2]
[334858910,1723609906137,-2129.2,0.00016438,2]
[334858911,1723609906147,-594.03,0.00016438,2]
[334858912,1723609906156,-500.0,0.00016438,2]
[334858913,1723609906165,-500.0,0.00016438,2]
[334858914,1723609906175,-500.0,0.00016438,2]
[334858915,1723609906184,-914.03,0.00016438,2]
[334858916,1723609906194,-500.0,0.00016438,2]
[334858917,1723609906203,-500.0,0.00016438,2]
[334858918,1723609906212,-1713.7,0.00016438,2]
[334858919,1723609906222,-1361.46,0.00016438,2]
[334858920,1723609906232,-546.87,0.00016438,2]
[334858921,1723609906242,-1866.29,0.00016438,2]
[334858922,1723609906251,-589.26,0.00016438,2]
[334858923,1723609906261,-613.17,0.00016438,2]
[334858924,1723609906270,-2021.75,0.00016438,2]
[334858925,1723609906280,-1137.56,0.00016438,2]
[334858926,1723609906290,-522.45,0.00016438,2]
[334858927,1723609906299,-500.0,0.00016438,2]
[334858928,1723609906309,-500.0,0.00016438,2]
[334858929,1723609906319,-500.0,0.00016438,2]
[334858930,1723609906328,-500.0,0.00016438,2]
[334858931,1723609906338,-1319.16,0.00016438,2]
[334858932,1723609906347,-1427.54,0.00016438,2]
[334858933,1723609906357,-500.0,0.00016438,2]
[334858934,1723609906367,-500.0,0.00016438,2]
[334858935,1723609906376,-763.0,0.00016438,2]
[334858936,1723609906385,-1228.12,0.00016438,2]
[334858937,1723609906396,-716.55,0.00016438,2]
[334858938,1723609906405,-500.0,0.00016438,2]
[334858939,1723609906415,-801.08,0.00016438,2]
[334858940,1723609906424,-952.82,0.00016438,2]
[334858941,1723609906434,-500.0,0.00016438,2]
[334858942,1723609906446,-500.0,0.00016438,2]
[334858943,1723609906455,-500.0,0.00016438,2]
[334858944,1723609906465,-500.0,0.00016438,2]
[334858945,1723609906474,-567.1,0.00016438,2]
[334858946,1723609906484,-727.51,0.00016438,2]
[334858947,1723609906493,-500.0,0.00016438,2]
[334858948,1723609906503,-500.0,0.00016438,2]
[334858949,1723609906514,-707.49,0.00016438,2]
[334858950,1723609906523,-930.55,0.00016438,2]
[334858951,1723609906533,-660.45,0.00016438,2]
[334858952,1723609906543,-500.0,0.00016438,2]
[334858953,1723609906553,-1078.02,0.00016438,2]
[334858954,1723609906562,-1088.19,0.00016438,2]
[334858955,1723609906572,-500.0,0.00016438,2]
[334858956,1723609906582,-759.3,0.00016438,2]
[334858957,1723609906592,-500.0,0.00016438,2]
[334858958,1723609906601,-500.0,0.00016438,2]
[334858959,1723609906611,-889.18,0.00016438,2]
[334858960,1723609906620,-1530.37,0.00016438,2]
[334858961,1723609906629,-934.11,0.00016438,2]
[334858962,1723609906639,-500.0,0.00016438,2]
[334858963,1723609906649,-1039.28,0.00016438,2]
[334858964,1723609906659,-1121.46,0.00016438,2]
[334858965,1723609906668,-512.89,0.00016438,2]
[334858966,1723609906678,-1333.72,0.00016438,2]
[334858967,1723609906688,-1259.4,0.00016438,2]
[334858968,1723609906697,-500.0,0.00016438,2]
[334858969,1723609906707,-1236.44,0.00016438,2]
[334858970,1723609906716,-500.0,0.00016438,2]
[334858971,1723609906726,-586.02,0.00016438,2]
[334858972,1723609906736,-595.38158924,0.00016438,2]
[334858973,1723609906745,-500.0,0.00016438,2]
[334858974,1723609906755,-1094.67,0.00016438,2]
[334858975,1723609906764,-500.0,0.00016438,2]
[334858976,1723609906774,-572.66,0.00016438,2]
[334858977,1723609906784,-899.03,0.00016438,2]
[334858978,1723609906794,-664.92,0.00016438,2]
[334858979,1723609906803,-756.4,0.00016438,2]
[334858980,1723609906813,-500.0,0.00016438,2]
[334858981,1723609906822,-500.0,0.00016438,2]
[334858982,1723609906833,-500.0,0.00016438,2]
[334858983,1723609906842,-1704.02,0.00016438,2]
[334858984,1723609906852,-534.59,0.00016438,2]
[334858985,1723609906861,-602.19,0.00016438,2]
[334858986,1723609906871,-549.62,0.00016438,2]
[334858987,1723609906880,-554.55,0.00016438,2]
[334858988,1723609906890,-633.91,0.00016438,2]
[334858989,1723609906900,-1088.07,0.00016438,2]
[334858990,1723609906910,-500.0,0.00016438,2]
[334858991,1723609906920,-1076.76,0.00016438,2]
[334858992,1723609906930,-500.0,0.00016438,2]
[334858993,1723609906940,-642.2,0.00016438,2]
[334858994,1723609906950,-884.91,0.00016438,2]
[334858995,1723609906960,-500.0,0.00016438,2]
[334858996,1723609906969,-500.0,0.00016438,2]
[334858997,1723609906979,-2366.93,0.00016438,2]
[334858998,1723609906988,-1310.19,0.00016438,2]
[334858999,1723609906998,-600.13,0.00016438,2]
[334859000,1723609907010,-500.0,0.00016438,2]
[334859001,1723609907020,-989.3,0.00016438,2]
[334859002,1723609907029,-500.0,0.00016438,2]
[334859003,1723609907039,-4480.77,0.00016438,2]
[334859004,1723609907049,-978.57,0.00016438,2]
[334859005,1723609907059,-624.47,0.00016438,2]
[334859006,1723609907068,-500.0,0.00016438,2]
[334859007,1723609907077,-588.4,0.00016438,2]
[334859008,1723609907090,-7603.03,0.00016438,2]
[334859009,1723609907100,-870.91,0.00016438,2]
[334859010,1723609907109,-1387.64,0.00016438,2]
[334859011,1723609907118,-933.77,0.00016438,2]
[334859012,1723609907128,-500.0,0.00016438,2]
[334859013,1723609907137,-1213.63,0.00016438,2]
[334859014,1723609907147,-500.0,0.00016438,2]
[334859015,1723609907156,-1373.06,0.00016438,2]
[334859016,1723609907166,-34383.11,0.00016438,2]
[334859017,1723609907175,-671.92,0.00016438,2]
[334859018,1723609907184,-593.97,0.00016438,2]
[334859019,1723609907194,-500.0,0.00016438,2]
[334859020,1723609907204,-670.51,0.00016438,2]
[334859021,1723609907214,-2281.42,0.00016438,2]
[334859022,1723609907223,-500.0,0.00016438,2]
[334859023,1723609907233,-643.43,0.00016438,2]
[334859024,1723609907243,-1248.5,0.00016438,2]
[334859025,1723609907253,-500.0,0.00016438,2]
[334859026,1723609907262,-500.0,0.00016438,2]
[334859027,1723609907271,-1086.21,0.00016438,2]
[334859028,1723609907281,-1370.1,0.00016438,2]
[334859029,1723609907290,-518.47,0.00016438,2]
[334859030,1723609907324,-3534.93,0.00016438,2]
[334859031,1723609907334,-1952.92,0.00016438,2]
[334859032,1723609907343,-500.0,0.00016438,2]
[334859033,1723609907352,-1576.63,0.00016438,2]
[334859034,1723609907362,-500.0,0.00016438,2]
[334859035,1723609907372,-910.69,0.00016438,2]
[334859036,1723609907381,-539.62,0.00016438,2]
[334859037,1723609907391,-1851.14,0.00016438,2]
[334859038,1723609907400,-860.94,0.00016438,2]
[334859039,1723609907410,-500.0,0.00016438,2]
[334859040,1723609907420,-11477.37,0.00016438,2]
[334859041,1723609907432,-500.0,0.00016438,2]
[334859042,1723609907442,-500.0,0.00016438,2]
[334859043,1723609907451,-500.0,0.00016438,2]
[334859044,1723609907461,-1281.62,0.00016438,2]
[334859045,1723609907470,-506.42,0.00016438,2]
[334859046,1723609907480,-940.92,0.00016438,2]
[334859047,1723609907489,-500.0,0.00016438,2]
[334859048,1723609907499,-627.23,0.00016438,2]
[334859049,1723609907508,-1472.9,0.00016438,2]
[334859050,1723609907518,-500.0,0.00016438,2]
[334859051,1723609907528,-572.1,0.00016438,2]
[334859052,1723609907537,-542.26,0.00016438,2]
[334859053,1723609907546,-500.0,0.00016438,2]
[334859054,1723609907556,-3046.11,0.00016438,2]
[334859055,1723609907565,-500.0,0.00016438,2]
[334859056,1723609907575,-703.44,0.00016438,2]
[334859057,1723609907584,-1526.23,0.00016438,2]
[334859058,1723609907594,-625.03,0.00016438,2]
[334859059,1723609907604,-1572.44,0.00016438,2]
[334859060,1723609907614,-661.53,0.00016438,2]
[334859061,1723609907623,-1259.91,0.00016438,2]
[334859062,1723609907633,-500.0,0.00016438,2]
[334859063,1723609907642,-999.55,0.00016438,2]
[334859064,1723609907651,-809.75,0.00016438,2]
[334859065,1723609907661,-500.0,0.00016438,2]
[334859066,1723609907671,-500.0,0.00016438,2]
[334859067,1723609907680,-500.0,0.00016438,2]
[334859068,1723609907691,-500.0,0.00016438,2]
[334859069,1723609907700,-500.0,0.00016438,2]
[334859070,1723609907710,-500.0,0.00016438,2]
[334859071,1723609907719,-500.0,0.00016438,2]
[334859072,1723609907727,-500.0,0.00016438,2]
[334859073,1723609907737,-500.0,0.00016438,2]
[334859074,1723609907746,-500.0,0.00016438,2]
[334859075,1723609907756,-500.0,0.00016438,2]
[334859076,1723609907765,-500.0,0.00016438,2]
[334859077,1723609907774,-2268.61,0.00016438,2]
[334859078,1723609907786,-1125.39,0.00016438,2]
[334859079,1723609907795,-779.17,0.00016438,2]
[334859080,1723609907805,-1486.32,0.00016438,2]
[334859081,1723609907815,-731.78,0.00016438,2]
[334859082,1723609907825,-1470.1,0.00016438,2]
[334859083,1723609907835,-681.82,0.00016438,2]
[334859084,1723609907844,-896.11,0.00016438,2]
[334859085,1723609907854,-1454.11,0.00016438,2]
[334859086,1723609907864,-1104.05,0.00016438,2]
[334859087,1723609907874,-2169.37,0.00016438,2]
[334859088,1723609907883,-500.0,0.00016438,2]
[334859089,1723609907893,-500.0,0.00016438,2]
[334859090,1723609907902,-500.0,0.00016438,2]
[334859091,1723609907912,-500.0,0.00016438,2]
[334859092,1723609907922,-1282.27,0.00016438,2]
[334859093,1723609907931,-6536.97,0.00016438,2]
[334859094,1723609907941,-500.0,0.00016438,2]
[334859095,1723609907951,-1328.52,0.00016438,2]
[334859096,1723609907960,-500.0,0.00016438,2]
[334859097,1723609907970,-9772.12,0.00016438,2]
[334859098,1723609907979,-2669.17,0.00016438,2]
[334859099,1723609907987,-3638.87,0.00016438,2]
[334859100,1723609907997,-1643.29,0.00016438,2]
[334859101,1723609908008,-500.0,0.00016438,2]
[334859102,1723609908018,-756.9,0.00016438,2]
[334859103,1723609908027,-500.0,0.00016438,2]
[334859104,1723609908036,-500.0,0.00016438,2]
[334859105,1723609908047,-510.29,0.00016438,2]
[334859106,1723609908056,-1412.99,0.00016438,2]
[334859107,1723609908067,-672.06,0.00016438,2]
[334859108,1723609908076,-632.04,0.00016438,2]
[334859109,1723609908088,-1317.22,0.00016438,2]
[334859110,1723609908097,-573.39,0.00016438,2]
[334859111,1723609908107,-2594.57,0.00016438,2]
[334859112,1723609908276,-1170.34,0.00016438,2]
[334859113,1723609908311,-2279.45,0.00016438,2]
[334859114,1723609908329,-1430.72,0.00016438,2]
[334859115,1723609908339,-500.0,0.00016438,2]
[334859116,1723609908348,-699.32,0.00016438,2]
[334859117,1723609908358,-500.0,0.00016438,2]
[334859118,1723609908368,-500.0,0.00016438,2]
[334859119,1723609908378,-2593.85,0.00016438,2]
[334859120,1723609908388,-709.11,0.00016438,2]
[334859121,1723609908398,-584.01,0.00016438,2]
[334859122,1723609908408,-2203.65,0.00016438,2]
[334859123,1723609908417,-500.0,0.00016438,2]
[334859124,1723609908427,-1289.07,0.00016438,2]
[334859125,1723609908437,-1545.87,0.00016438,2]
[334859126,1723609908447,-4744.17,0.00016438,2]
[334859127,1723609908456,-721.29,0.00016438,2]
[334859128,1723609908466,-693.69,0.00016438,2]
[334859129,1723609908476,-500.0,0.00016438,2]
[334859130,1723609908485,-702.63,0.00016438,2]
[334859131,1723609908494,-500.0,0.00016438,2]
[334859132,1723609908504,-500.0,0.00016438,2]
[334859133,1723609908513,-1337.5,0.00016438,2]
[334859134,1723609908522,-2072.36,0.00016438,2]
[334859135,1723609908532,-1595.04,0.00016438,2]
[334859136,1723609908542,-500.0,0.00016438,2]
[334859137,1723609908551,-632.26,0.00016438,2]
[334859138,1723609908560,-1847.69,0.00016438,2]
[334859139,1723609908568,-934.24,0.00016438,2]
[334859140,1723609908577,-921.25,0.00016438,2]
[334859141,1723609908586,-606.48,0.00016438,2]
[334859142,1723609908594,-1284.98,0.00016438,2]
[334859143,1723609908603,-500.0,0.00016438,2]
[334859144,1723609908612,-500.0,0.00016438,2]
[334859145,1723609908622,-500.0,0.00016438,2]
[334859146,1723609908631,-794.79,0.00016438,2]
[334859147,1723609908641,-1821.67,0.00016438,2]
[334859148,1723609908651,-6567.88,0.00016438,2]
[334859149,1723609908661,-958.01,0.00016438,2]
[334859150,1723609908671,-1300.27,0.00016438,2]
[334859151,1723609908680,-1529.8,0.00016438,2]
[334859152,1723609908690,-500.0,0.00016438,2]
[334859153,1723609908700,-7894.91,0.00016438,2]
[334859154,1723609908710,-962.46,0.00016438,2]
[334859155,1723609908721,-784.56,0.00016438,2]
[334859156,1723609908730,-2122.48,0.00016438,2]
[334859157,1723609908741,-500.0,0.00016438,2]
[334859158,1723609908751,-1436.52,0.00016438,2]
[334859159,1723609908761,-602.19,0.00016438,2]
[334859160,1723609908774,-500.0,0.00016438,2]
[334859161,1723609908784,-2443.79,0.00016438,2]
[334859162,1723609908793,-500.0,0.00016438,2]
[334859163,1723609908803,-1117.72,0.00016438,2]
[334859164,1723609908812,-1141.56,0.00016438,2]
[334859165,1723609908822,-500.0,0.00016438,2]
[334859166,1723609908832,-1038.02,0.00016438,2]